Workbook

Sheet Title Page
D2: Mobile TeleSystems
B5: Contents
B7: 1. MTS Group statement of profit or loss
B8: 2. MTS Group statement of financial position
B9: 3. MTS Group statement of cash flows
B10: 4. MTS Russia highlights
B11: 5. MTS Ukraine highlights
B12: 6. MTS Armenia highlights
B13: 7. MTS Turkmenistan highlights
B14: 8. MTS Uzbekistan highlights
B15: 9. MTS Belarus highlights
B16: 10. Group reconciliations
B17: 11. IFRS vs GAAP P&L FY 2014
B18: 12. Debt repayment schedule
B19: 13. Average Forex rates
B20: Glossary of terms
B23: Disclaimer

Sheet Statement of profit or loss
B2: MOBILE TELESYSTEMS (NYSE: MBT)
B3: CONDENSED UNAUDITED CONSOLIDATED STATEMENTS OF PROFIT OR LOSS
C4: 2014 | H4: 2015
B5: (Amounts in millions of RUB, except share and per share amounts) | C5: Q1 | D5: Q2 | E5: Q3 | F5: Q4 | G5: Full year | H5: Q1 | I5: Q2 | J5: Q3 | K5: Q4 | L5: Full year
B7: Net operating revenue
B8: Service revenue | C8: 91329 | D8: 92845 | E8: 99158 | F8: 97912 | G8: 381245 | H8: 93810 | I8: 95021 | J8: 102341 | K8: 99518 | L8: 390690
B9: Sales of goods | C9: 6217 | D9: 6034 | E9: 7994 | F9: 9290 | G9: 29535 | H9: 6372 | I9: 7670 | J9: 12694 | K9: 13807 | L9: 40542
C10: 97546 | D10: 98879 | E10: 107152 | F10: 107202 | G10: 410780 | H10: 100182 | I10: 102691 | J10: 115034 | K10: 113325 | L10: 431232
B11: Operating expenses
B12: Cost of services | C12: -28396 | D12: -28665 | E12: -30001 | F12: -32504 | G12: -119567 | H12: -32372 | I12: -31028 | J12: -33453 | K12: -33739 | L12: -130592
B13: Cost of handsets and accessories | C13: -5439 | D13: -5381 | E13: -6952 | F13: -7677 | G13: -25450 | H13: -4686 | I13: -7043 | J13: -11721 | K13: -13130 | L13: -36580
B14: Selling, general and administrative expenses | C14: -21311 | D14: -21391 | E14: -21571 | F14: -24003 | G14: -88275 | H14: -22295 | I14: -22450 | J14: -21561 | K14: -22996 | L14: -89302
B15: Depreciation and amortization | C15: -18103 | D15: -18326 | E15: -19107 | F15: -19486 | G15: -75021 | H15: -20448 | I15: -20221 | J15: -20700 | K15: -21104 | L15: -82473
B16: Other operating expenses | C16: -867 | D16: -175 | E16: -394 | F16: -384 | G16: -1819 | H16: -516 | I16: -95 | J16: -1164 | K16: -894 | L16: -2669
B17: Operating share of the profit of associates | C17: 621 | D17: 393 | E17: 733 | F17: 1712 | G17: 3458 | H17: 996 | I17: 647 | J17: 884 | K17: 930 | L17: 3457
B18: Provision for cash balances deposited in distressed Ukrainian banks | F18: -5138 | G18: -5138 | H18: -1698 | L18: -1698
B19: Gain from reentrance into Uzbekistan | E19: 3604 | F19: 3130 | G19: 6734
B20: Impairment of goodwill & long-lived assets | K20: -3516 | L20: -3516
B22: Operating profit | C22: 24051 | D22: 25334 | E22: 33464 | F22: 22852 | G22: 105702 | H22: 19163 | I22: 22501 | J22: 27319 | K22: 18876 | L22: 87859
B24: Currency exchange gain or loss | C24: -3766 | D24: 4201 | E24: -9523 | F24: -8822 | G24: -17911 | H24: -3509 | I24: 3615 | J24: -3344 | K24: -2975 | L24: -6213
B26: Other income / (expense):
B27: Finance income | C27: 958 | D27: 1358 | E27: 1097 | F27: 1106 | G27: 4519 | H27: 2326 | I27: 2437 | J27: 1935 | K27: 1670 | L27: 8368
B28: Finance costs, net of amounts capitalized | C28: -4437 | D28: -4043 | E28: -4359 | F28: -4421 | G28: -17260 | H28: -6048 | I28: -6561 | J28: -6771 | K28: -7250 | L28: -26630
B29: Other income / (loss) | C29: -199 | D29: 734 | E29: -1325 | F29: -6779 | G29: -7569 | H29: -5 | I29: -593 | J29: -1045 | K29: -1068 | L29: -2711
B30: Total other expenses, net | C30: -3678 | D30: -1951 | E30: -4587 | F30: -10094 | G30: -20310 | H30: -3727 | I30: -4717 | J30: -5881 | K30: -6648 | L30: -20973
B32: Profit before income taxes and non-controlling interests | C32: 16607 | D32: 27584 | E32: 19354 | F32: 3936 | G32: 67481 | H32: 11927 | I32: 21399 | J32: 18094 | K32: 9253 | L32: 60673
B34: Income tax expense | C34: -3748 | D34: -5615 | E34: -3792 | F34: -2830 | G34: -15985 | H34: -1938 | I34: -4711 | J34: -4140 | K34: -2480 | L34: -13269
B36: Profit for the period | C36: 12859 | D36: 21969 | E36: 15562 | F36: 1106 | G36: 51496 | H36: 9989 | I36: 16688 | J36: 13954 | K36: 6773 | L36: 47404
B38: (Profit) / loss attributable to non-controlling interests | C38: -151 | D38: -159 | E38: -155 | F38: 275 | G38: -189 | H38: 898 | I38: 386 | J38: 439 | K38: 362 | L38: 2085
B40: Profit attributable to equity shareholders | C40: 12708 | D40: 21810 | E40: 15407 | F40: 1381 | G40: 51307 | H40: 10887 | I40: 17074 | J40: 14393 | K40: 7135 | L40: 49489
B41: Weighted average number of common shares outstanding, in thousands - basic and diluted | C41: 1988824 | D41: 1988782 | E41: 1988766 | F41: 1988730 | G41: 1988757 | H41: 1988730 | I41: 1988730 | J41: 1988734 | K41: 1988717 | L41: 1988728
B42: Earnings per share - basic | C42: 6.39 | D42: 10.97 | E42: 7.75 | F42: 0.69 | G42: 25.8 | H42: 5.47 | I42: 8.59 | J42: 7.24 | K42: 3.59 | L42: 24.88
B43: Weighted average number of common shares outstanding, in thousands - diluted | C43: 1989775 | D43: 1989733 | E43: 1989717 | F43: 1989950.949 | G43: 1989978 | H43: 1989951 | I43: 1989951 | J43: 1989955 | K43: 1990185 | L43: 1990196
B44: Earnings per share - diluted | C44: 6.39 | D44: 10.96 | E44: 7.74 | F44: 0.69 | G44: 25.78 | H44: 5.47 | I44: 8.58 | J44: 7.23 | K44: 3.59 | L44: 24.87
B46: Adjusted OIBDA* | C46: 42154 | D46: 43661 | E46: 48967 | F46: 44346 | G46: 179127 | H46: 41309 | I46: 42722 | J46: 48019 | K46: 43495 | L46: 175546
B47: Adjusted OIBDA margin | C47: 0.432 | D47: 0.442 | E47: 0.457 | F47: 0.414 | G47: 0.436 | H47: 0.412 | I47: 0.416 | J47: 0.417 | K47: 0.384 | L47: 0.407
B49: * Adjusted OIBDA for Q3 2014 doesn't include a gain from reentrance into Uzbekistan of RUB 3,604 mln. Adjusted OIBDA for Q4 2014 doesn't include a gain from reentrance into Uzbekistan of RUB 3,130 mln and provision for cash balances deposited in distressed Ukrainian banks of RUB 5,138 mln. Adjusted OIBDA for 2014 doesn't include a gain from reentrance into Uzbekistan of RUB 6,734 mln and provision for cash balances deposited in distressed Ukrainian banks of RUB 5,138 mln. Adjusted OIBDA for 1Q 2015 and 2015 doesn't include a provision for cash balances deposited in distressed Ukrainian banks of RUB 1,698 mln. Adjusted OIBDA for 4Q 2015 and 2015 doesn't include a loss from impairment of goodwill in Armenia of RUB 3,516 mln.

Sheet Statement of financial position
B2: MOBILE TELESYSTEMS (NYSE: MBT)
B3: CONDENSED UNAUDITED CONSOLIDATED STATEMENTS OF FINANCIAL POSITION
C4: 2014 | G4: 2015
B5: (Amounts in millions of RUB, except share amounts) | C5: Mar 31 | D5: Jun 30 | E5: Sep 30 | F5: Dec 31 | G5: Mar 31 | H5: Jun 30 | I5: Sep 30 | J5: Dec 31
B6: NON-CURRENT ASSETS:
B7: Property, plant and equipment | C7: 259606 | D7: 263490 | E7: 271885 | F7: 299023 | G7: 293770 | H7: 291118 | I7: 295220 | J7: 302662
B8: Investment property | C8: 2250 | D8: 2252 | E8: 2004 | F8: 290 | G8: 290 | H8: 314 | I8: 313 | J8: 364
B9: Intangible assets | C9: 73798 | D9: 73554 | E9: 81484 | F9: 98520 | G9: 105575 | H9: 105374 | I9: 109023 | J9: 109064
B10: Investments in associates | C10: 10968 | D10: 13156 | E10: 14415 | F10: 15217 | G10: 14995 | H10: 12383 | I10: 12198 | J10: 9299
B11: Deferred tax assets | C11: 1971 | D11: 1780 | E11: 2211 | F11: 6186 | G11: 6165 | H11: 5633 | I11: 7277 | J11: 9287
B12: Non-current income tax assets | C12: 640 | D12: 657 | E12: 895 | F12: 0 | G12: 0 | H12: 836 | I12: 699 | J12: 0
B13: Other non-current non-financial assets | C13: 0 | D13: 0 | E13: 0 | F13: 0 | G13: 6 | H13: 10 | I13: 112 | J13: 480
B14: Other investments | C14: 5888 | D14: 19974 | E14: 6819 | F14: 17065 | G14: 41346 | H14: 40089 | I14: 31386 | J14: 34667
B15: Accounts receivable, related parties | C15: 0 | D15: 0 | E15: 0 | F15: 0 | G15: 3850 | H15: 3154 | I15: 3244 | J15: 3335
B16: Other non-current financial assets | C16: 4712 | D16: 3293 | E16: 7192 | F16: 21950 | G16: 20341 | H16: 17348 | I16: 22440 | J16: 25203
B17: Total non-current assets | C17: 359833 | D17: 378156 | E17: 386905 | F17: 458251 | G17: 486338 | H17: 476259 | I17: 481912 | J17: 494361
B19: CURRENT ASSETS:
B20: Inventory | C20: 7476 | D20: 7281 | E20: 7779 | F20: 7509 | G20: 7696 | H20: 9984 | I20: 15813 | J20: 14510
B21: Trade and other receivables | C21: 31589 | D21: 31289 | E21: 33819 | F21: 34463 | G21: 35098 | H21: 35504 | I21: 41554 | J21: 34542
B22: Accounts receivable, related parties | C22: 1183 | D22: 4211 | E22: 4241 | F22: 4525 | G22: 4847 | H22: 5394 | I22: 5936 | J22: 6326
B23: Short-term investments | C23: 39073 | D23: 20778 | E23: 23999 | F23: 9942 | G23: 42993 | H23: 46319 | I23: 56627 | J23: 49840
B24: VAT receivable | C24: 6310 | D24: 6312 | E24: 7556 | F24: 8071 | G24: 8385 | H24: 9653 | I24: 11793 | J24: 9815
B25: Current income tax assets | C25: 7784 | D25: 5385 | E25: 4230 | F25: 8656 | G25: 6882 | H25: 3858 | I25: 5315 | J25: 5190
B26: Assets held for sale | C26: 461 | D26: 43 | E26: 888 | F26: 2136 | G26: 443 | H26: 659 | I26: 585 | J26: 549
B27: Advances paid and prepaid expenses, other current assets | C27: 2954 | D27: 3182 | E27: 3448 | F27: 4341 | G27: 4338 | H27: 3533 | I27: 4436 | J27: 4781
B28: Cash and cash equivalents | C28: 37207 | D28: 53449 | E28: 45937 | F28: 61410 | G28: 43776 | H28: 44120 | I28: 25149 | J28: 33464
B29: Total current assets | C29: 134037 | D29: 131930 | E29: 131897 | F29: 141053 | G29: 154458 | H29: 159024 | I29: 167208 | J29: 159017
B31: Total assets | C31: 493870 | D31: 510086 | E31: 518802 | F31: 599304 | G31: 640796 | H31: 635283 | I31: 649120 | J31: 653378
B33: EQUITY:
B34: Total shareholders' equity attributable to the MTS Group* | C34: 161708 | D34: 143863 | E34: 155856 | F34: 168829 | G34: 170563 | H34: 148509 | I34: 155404 | J34: 160115
B35: Non-controlling interests | C35: 4256 | D35: 4201 | E35: 7953 | F35: 9793 | G35: 9221 | H35: 8348 | I35: 8511 | J35: 8256
B36: Total equity | C36: 165964 | D36: 148064 | E36: 163809 | F36: 178622 | G36: 179784 | H36: 156857 | I36: 163915 | J36: 168371
B38: NON-CURRENT LIABILITIES:
B39: Borrowigs | C39: 195324 | D39: 212593 | E39: 221364 | F39: 248549 | G39: 284910 | H39: 270055 | I39: 285993 | J39: 292168
B40: Deferred tax liabilities | C40: 16252 | D40: 16783 | E40: 18714 | F40: 24809 | G40: 23929 | H40: 23912 | I40: 26016 | J40: 27346
B41: Provisions | C41: 3689 | D41: 3695 | E41: 3793 | F41: 2838 | G41: 2916 | H41: 2957 | I41: 3037 | J41: 2565
B42: Other financial liabilities | C42: 3563 | D42: 2623 | E42: 3193 | F42: 522 | G42: 550 | H42: 520 | I42: 605 | J42: 3601
B43: Other non-financial liabilities | C43: 4687 | D43: 4581 | E43: 4466 | F43: 4584 | G43: 4570 | H43: 4618 | I43: 4732 | J43: 4342
B44: Total non-current liabilities | C44: 223515 | D44: 240275 | E44: 251530 | F44: 281302 | G44: 316875 | H44: 302062 | I44: 320383 | J44: 330022
B46: CURRENT LIABILITIES:
B47: Borrowings | C47: 24470 | D47: 9880 | E47: 10930 | F47: 41416 | G47: 44752 | H47: 48921 | I47: 59427 | J47: 53701
B48: Provisions | C48: 8927 | D48: 6576 | E48: 7408 | F48: 8684 | G48: 6596 | H48: 8005 | I48: 7312 | J48: 7863
B49: Trade and other payables | C49: 40535 | D49: 75584 | E49: 54364 | F49: 52811 | G49: 61957 | H49: 87725 | I49: 65083 | J49: 57756
B50: Accounts payable, related parties | C50: 3112 | D50: 2627 | E50: 2881 | F50: 4674 | G50: 3431 | H50: 2816 | I50: 2891 | J50: 1809
B51: Income tax liabilities | C51: 650 | D51: 1560 | E51: 1247 | F51: 1368 | G51: 561 | H51: 468 | I51: 548 | J51: 831
B52: Other financial liabilities | C52: 20 | D52: 7 | E52: 0 | F52: 5220 | G52: 3192 | H52: 3069 | I52: 3653 | J52: 6853
B53: Other non-financial liabilities | C53: 26677 | D53: 25513 | E53: 26633 | F53: 25207 | G53: 23648 | H53: 25360 | I53: 25908 | J53: 26172
B54: Total current liabilities | C54: 104391 | D54: 121747 | E54: 103463 | F54: 139380 | G54: 144137 | H54: 176364 | I54: 164822 | J54: 154985
B56: Total equity and liabilities | C56: 493870 | D56: 510086 | E56: 518802 | F56: 599304 | G56: 640796 | H56: 635283 | I56: 649120 | J56: 653378
B58: Net debt | C58: ='Group reconciliations'!C15 -> 140605 | D58: ='Group reconciliations'!D15 -> 132365 | E58: ='Group reconciliations'!E15 -> 156678 | F58: ='Group reconciliations'!F15 -> 184713 | G58: ='Group reconciliations'!G15 -> 187149 | H58: ='Group reconciliations'!H15 -> 176891 | I58: ='Group reconciliations'!I15 -> 216151 | J58: ='Group reconciliations'!J15 -> 215857
B59: Net debt/LTM OIBDA | C59: ='Group reconciliations'!C24 -> x | D59: ='Group reconciliations'!D24 -> x | E59: ='Group reconciliations'!E24 -> x | F59: ='Group reconciliations'!F24 -> 1 | G59: ='Group reconciliations'!G24 -> 1 | H59: ='Group reconciliations'!H24 -> 1 | I59: ='Group reconciliations'!I24 -> 1.2 | J59: ='Group reconciliations'!J24 -> 1.2
B62: *Common stock: (2,096,975,792 shares with a par value of 0.1 rubles authorized and 2,066,413,562 shares issued as of December 31, 2015 and December 31, 2014 (777,396,505 of which are in the form of ADS as of December 31, 2015 and December 31, 2014). Treasury stock: 77,521,163 and 77,501,432 common shares at cost as of December 31, 2015 and December 31, 2014, respectively

Sheet Statement of cash flows
B2: MOBILE TELESYSTEMS (NYSE: MBT)
B3: CONDENSED UNAUDITED CONSOLIDATED STATEMENTS OF CASH FLOWS
C4: 2014 | G4: 2015
B5: (Amounts in millions of RUB) | C5: Mar 31 | D5: Jun 30 | E5: Sep 30 | F5: Dec 31 | G5: Mar 31 | H5: Jun 30 | I5: Sep30 | J5: Dec 31
B6: CASH FLOWS FROM OPERATING ACTIVITIES:
B8: Profit for the period | C8: 12859 | D8: 34827 | E8: 50390 | F8: 51496 | G8: 9989 | H8: 26677 | I8: 40631 | J8: 47404
B10: Adjustments to reconcile net income to net cash provided by operating activities:
B11: Depreciation and amortization | C11: 18103 | D11: 36429 | E11: 55535 | F11: 75021 | G11: 20448 | H11: 40669 | I11: 61369 | J11: 82473
B12: Finance income | C12: -958 | D12: -2316 | E12: -3413 | F12: -4519 | G12: -2326 | H12: -4763 | I12: -6698 | J12: -8368
B13: Finance costs | C13: 4437 | D13: 8480 | E13: 12839 | F13: 17260 | G13: 6048 | H13: 12609 | I13: 19380 | J13: 26630
B14: Income tax expense | C14: 3748 | D14: 9364 | E14: 13155 | F14: 15985 | G14: 1938 | H14: 6649 | I14: 10789 | J14: 13269
B15: Currency exchange gain or loss | C15: 3766 | D15: -435 | E15: 9088 | F15: 17911 | G15: 3509 | H15: -107 | I15: 3238 | J15: 6213
B16: Change in fair value of financial instruments | D16: -943 | E16: -515 | F16: 95 | H16: -91 | I16: -91 | J16: -1014
B17: Impairment of investments | F17: 5061 | J17: 0
B18: Amortization of deferred connection fees | C18: -360 | D18: -576 | E18: -898 | F18: -1912 | G18: -287 | H18: -569 | I18: -1044 | J18: -2362
B19: Share of the (profit) / loss of associates | C19: -501 | D19: -794 | E19: -926 | F19: 3080 | G19: -793 | H19: -839 | I19: -912 | J19: =ROUND('[10]CF PR'!$F$26/1000,0) -> 324
B20: Inventory obsolescence expense | C20: 97 | D20: 162 | E20: 289 | F20: 357 | G20: 30 | H20: 86 | I20: 131 | J20: 384
B21: Provision for doubtful accounts | C21: 1059 | D21: 1733 | E21: 2497 | F21: 3270 | G21: 711 | H21: 1483 | I21: 2080 | J21: 3221
B22: Change in provisions | C22: 2265 | D22: 4851 | E22: 6200 | F22: 8965 | G22: 2002 | H22: 4752 | I22: 6357 | J22: 7265
B23: Non cash gain from reentrance into Uzbekistan | E23: -3604 | F23: -6724
B24: Impairment of goodwill in Armenia | J24: 3516
B25: Other non-cash items | C25: 5 | D25: -60 | E25: -247 | F25: -31 | G25: -180 | H25: -294 | I25: -541 | J25: -562
B27: Changes in operating assets and liabilities:
B28: Decrease/(Increase) in trade receivables | C28: 4743 | D28: 2698 | E28: 996 | F28: 5412 | G28: -2884 | H28: -4824 | I28: -9150 | J28: 2781
B29: Decrease/(Increase) in inventory | C29: 916 | D29: 1030 | E29: 436 | F29: 731 | G29: -123 | H29: -2516 | I29: -8076 | J29: -5998
B30: Decrease/(Increase) in VAT receivable | C30: 434 | D30: 280 | E30: -846 | F30: -1058 | G30: -247 | H30: -1599 | I30: -3326 | J30: -642
B31: Decrease/(Increase) in prepaid expenses and other current assets | C31: 1082 | D31: 716 | E31: 910 | F31: 1217 | G31: 986 | H31: 3113 | I31: 373 | J31: 574
B32: Increase/(Decrease) in trade payables, accrued liabilities and other current liabilities | C32: -3114 | D32: -6614 | E32: -8188 | F32: -12790 | G32: 2540 | H32: 2103 | I32: 4360 | J32: -4449
B33: Dividends received | C33: 495 | D33: 1303 | E33: 1869 | F33: 2650 | G33: 576 | H33: 1471 | I33: 2205 | J33: 3269
B34: Income taxes paid | C34: -3941 | D34: -5898 | E34: -8256 | F34: -9906 | G34: -1679 | H34: -4207 | I34: -8034 | J34: -9643
B35: Interest received | C35: 418 | D35: 1292 | E35: 2678 | F35: 3752 | G35: 1194 | H35: 2062 | I35: 3667 | J35: 4760
B36: Interest paid, net of interest capitalised | C36: -1669 | D36: -7691 | E36: -9950 | F36: -16344 | G36: -2337 | H36: -9849 | I36: -16697 | J36: -24957
B37: NET CASH PROVIDED BY OPERATING ACTIVITIES | C37: 43884 | D37: 77838 | E37: 120039 | F37: 158979 | G37: 39115 | H37: 72016 | I37: 100011 | J37: 144088
B40: CASH FLOWS FROM INVESTING ACTIVITIES:
B42: Acquisition of subsidiaries, net of cash acquired | F42: -2755
B43: Purchases of property, plant and equipment | C43: -8470 | D43: -23062 | E43: -40262 | F43: -73573 | G43: -21886 | H43: -40921 | I43: -56528 | J43: -76671
B44: Purchases of intangible assets | C44: -1437 | D44: -5447 | E44: -13056 | F44: -18356 | G44: -3539 | H44: -12720 | I44: -16529 | J44: -19440
B45: Purchase of 3G and 4G licenses in Ukraine and Russia | G45: -7044 | H45: -7044 | I45: -7044 | J45: -10426
B46: Proceeds from sale of property, plant and equipment and assets held for sale | C46: 123 | D46: 231 | E46: 506 | F46: 619 | G46: 1291 | H46: 1326 | I46: 2279 | J46: 2988
B47: Purchases of short-term investments | C47: -24976 | D47: -29187 | E47: -33093 | F47: -36014 | G47: -21390 | H47: -28790 | I47: -28871 | J47: -33014
B48: Proceeds from sale of short-term investments | C48: 1984 | D48: 23383 | E48: 40019 | F48: 47619 | G48: 1353 | H48: 4422 | I48: 17962 | J48: 31572
B49: Purchase of other investments | D49: -15283 | E49: -15714 | F49: -34613 | G49: -39831 | H49: -39867 | I49: -40439 | J49: -40471
B50: Proceeds from sale of other investments | D50: 730 | E50: 730 | F50: 19831 | G50: 97 | H50: 97 | I50: 97 | J50: 106
B51: Investments in and advances to associates | D51: -2702 | E51: -2862 | F51: -7767
B52: NET CASH USED IN INVESTING ACTIVITIES: | C52: -32776 | D52: -51337 | E52: -63732 | F52: -105009 | G52: -90949 | H52: -123497 | I52: -129073 | J52: -145356
B55: CASH FLOWS FROM FINANCING ACTIVITIES:
B56: Repayment of notes | C56: -1819 | D56: -16619 | E56: -17441 | F56: -23152 | H56: -479 | I56: -2460 | J56: -24018
B57: Notes and debt issuance cost | C57: -22 | D57: -25 | E57: -25 | F57: -360 | G57: -1112 | H57: -1213 | I57: -1226 | J57: -1244
B58: Finance lease obligation principal paid | C58: -10 | D58: -20 | E58: -103 | F58: -227 | G58: -143 | H58: -224 | I58: -313 | J58: -409
B59: Dividends paid | C59: -56 | D59: -56 | E59: -37547 | F59: -49921 | H59: -82 | I59: -39455 | J59: -50786
B60: Cash flows under capital transactions with related parties | E60: -26 | F60: -26 | G60: 363 | H60: 4252 | I60: -3408 | J60: -4821
B61: Proceeds from loans, net of fees paid | D61: 20000 | E61: 20000 | F61: 69179 | G61: 43498 | H61: 43818 | I61: 49671 | J61: 63162
B62: Repayment of loans | C62: -2865 | D62: -5944 | E62: -8095 | F62: -29235 | G62: -6429 | H62: -9009 | I62: -10080 | J62: -16132
B63: Cash inflow from fair value hedge | J63: 6706
B64: Other financing activities | C64: 23 | D64: -2 | E64: 24 | F64: 531 | H64: 5 | I64: -48 | J64: -53
B65: NET CASH USED IN FINANCING ACTIVITIES | C65: -4749 | D65: -2666 | E65: -43213 | F65: -33211 | G65: 36177 | H65: 37068 | I65: -7319 | J65: -27595
B68: Effect of exchange rate changes on cash and cash equivalents | C68: 236 | D68: -998 | E68: 2231 | F68: 10195 | G68: -2133 | H68: -2924 | I68: -36 | J68: 761
B70: NET INCREASE / (DECREASE) IN CASH AND CASH EQUIVALENTS: | C70: 6595 | D70: 22837 | E70: 15325 | F70: 30954 | G70: -17790 | H70: -17337 | I70: -36417 | J70: -28102
B72: CASH AND CASH EQUIVALENTS, at beginning of the period | C72: 30612 | D72: 30612 | E72: 30612 | F72: 30612 | G72: 61566 | H72: 61566 | I72: 61566 | J72: 61566
B74: CASH AND CASH EQUIVALENTS, at end of the period | C74: 37207 | D74: 53449 | E74: 45937 | F74: 61566 | G74: 43776 | H74: 44229 | I74: 25149 | J74: 33464
B75: Less cash and cash equivalents classified within assets held for sale | F75: -156 | H75: -109 | I75: 0 | J75: 0
B76: CASH AND CASH EQUIVALENTS, at end of the period | C76: 37207 | D76: 53449 | E76: 45937 | F76: 61410 | G76: 43776 | H76: 44120 | I76: 25149 | J76: 33464
B78: CAPEX (for the quarter) | C78: =-SUM(C43:C45) -> 9907 | D78: =-SUM(D43:D45)+SUM(C43:C45) -> 18602 | E78: =-SUM(E43:E45)+SUM(D43:D45) -> 24809 | F78: 38611 | G78: =-SUM(G43:G45) -> 32469 | H78: =-SUM(H43:H45)+SUM(G43:G45) -> 28216 | I78: =-SUM(I43:I45)+SUM(H43:H45) -> 19416 | J78: =-SUM(J43:J45)+SUM(I43:I45) -> 26436
B79: CAPEX excluding purchases of 3G, 4G license in Ukraine and Russia (for the quarter) | C79: =-SUM(C43:C44) -> 9907 | D79: =-SUM(D43:D44)+SUM(C43:C44) -> 18602 | E79: =-SUM(E43:E44)+SUM(D43:D44) -> 24809 | F79: 38611 | G79: =-SUM(G43:G44) -> 25425 | H79: =-SUM(H43:H44)+SUM(G43:G44) -> 28216 | I79: =-SUM(I43:I44)+SUM(H43:H44) -> 19416 | J79: =-SUM(J43:J44)+SUM(I43:I44) -> 23054
B80: CAPEX as % of Revenue | C80: 0.103 | D80: 0.19 | E80: 0.233 | F80: 0.362 | G80: 0.254 | H80: 0.275 | I80: 0.169 | J80: 0.203
B82: FCF | C82: ='Group reconciliations'!C46 -> 34101 | D82: ='Group reconciliations'!D46 -> 46858 | E82: ='Group reconciliations'!E46 -> 64365 | F82: ='Group reconciliations'!F46 -> 57147 | G82: ='Group reconciliations'!G46 -> 14981 | H82: ='Group reconciliations'!H46 -> 19701 | I82: ='Group reconciliations'!I46 -> 29233 | J82: ='Group reconciliations'!J46 -> 50965

Sheet Russia
B2: Country highlights: | C2: 2014 | H2: 2015
B3: Russia | C3: Q1 | D3: Q2 | E3: Q3 | F3: Q4 | G3: Full year | H3: Q1 | I3: Q2 | J3: Q3 | K3: Q4 | L3: Full year
B5: RUB/USD | C5: 35 | D5: 35 | E5: 36.2 | F5: 47.4 | G5: 38.4 | H5: 62.2 | I5: 53 | J5: 63 | K5: 65.9 | L5: 61
B7: Amounts in millions of RUB, unless stated
B8: Service revenue | C8: 81069 | D8: 84387 | E8: 91264 | F8: 88823 | G8: 345542 | H8: 84165 | I8: 86729 | J8: 91302 | K8: 88698 | L8: 350894
B9: - mobile | C9: 67847 | D9: 70739 | E9: 77164 | F9: 74621 | G9: 290371 | H9: 70521 | I9: 72749 | J9: 77967 | K9: 74928 | L9: 296165
B10: - fixed line | C10: 15184 | D10: 15584 | E10: 15799 | F10: 15966 | G10: 62533 | H10: 15319 | I10: 15706 | J10: 15076 | K10: 15513 | L10: 61614
B11: - eliminations | C11: -1962 | D11: -1936 | E11: -1699 | F11: -1764 | G11: -7361 | H11: -1675 | I11: -1726 | J11: -1740 | K11: -1744 | L11: -6885
B12: Sales of goods | C12: 6183 | D12: 6003 | E12: 7945 | F12: 9220 | G12: 29351 | H12: 6258 | I12: 7607 | J12: 12615 | K12: 13840 | L12: 40320
B13: Operating profit | C13: 22565 | D13: 24205 | E13: 28324 | F13: 24299 | G13: 99394 | H13: 21091 | I13: 23728 | J13: 27275 | K13: 23481 | L13: 95575
B14: - operating margin, % | C14: 0.259 | D14: 0.268 | E14: 0.286 | F14: 0.248 | G14: 0.265 | H14: 0.233 | I14: 0.252 | J14: 0.262 | K14: 0.229 | L14: 0.244
B15: Depreciation and amortization | C15: 15283 | D15: 16133 | E15: 17156 | F15: 17065 | G15: 65638 | H15: 17080 | I15: 17517 | J15: 17252 | K15: 17634 | L15: 69483
B16: - as % of revenue | C16: 0.175 | D16: 0.178 | E16: 0.173 | F16: 0.174 | G16: 0.175 | H16: 0.189 | I16: 0.186 | J16: 0.166 | K16: 0.172 | L16: 0.178
B17: OIBDA | C17: 37849 | D17: 40338 | E17: 45481 | F17: 41365 | G17: 165032 | H17: 38171 | I17: 41245 | J17: 44527 | K17: 41115 | L17: 165058
B18: OIBDA margin, % | C18: 0.434 | D18: 0.446 | E18: 0.458 | F18: 0.422 | G18: 0.44 | H18: 0.422 | I18: 0.437 | J18: 0.428 | K18: 0.401 | L18: 0.422
B19: Net profit | C19: 9503 | D19: 19618 | E19: 10725 | F19: 4522 | G19: 44368 | H19: 9109 | I19: 18746 | J19: 13448 | K19: 11817 | L19: 53120
B20: - margin, % | C20: 0.109 | D20: 0.217 | E20: 0.108 | F20: 0.046 | G20: 0.118 | H20: 0.101 | I20: 0.199 | J20: 0.129 | K20: 0.115 | L20: 0.136
B21: CAPEX | C21: 9073 | D21: 17636 | E21: 23558 | F21: 35223 | G21: 85491 | H21: 23064 | I21: 26287 | J21: 16795 | K21: 16854 | L21: 83000
B22: CAPEX excluding purchases of 4G license | C22: 9073 | D22: 17636 | E22: 23558 | F22: 35223 | G22: 85491 | H22: 23064 | I22: 26287 | J22: 16795 | K22: 13473 | L22: 79619
B23: - as % of revenue | C23: 0.104 | D23: 0.195 | E23: 0.237 | F23: 0.359 | G23: 0.228 | H23: 0.255 | I23: 0.279 | J23: 0.162 | K23: 0.131 | L23: 0.204
B25: Operating highlights
B26: Mobile business
B27: MTS subscribers, mln | C27: 70 | D27: 70.6 | E27: 73.3 | F27: 74.6 | G27: 74.6 | H27: 74.5 | I27: 75.4 | J27: 76.9 | K27: 77.3 | L27: 77.3
B28: Market share, % | C28: 0.3 | D28: 0.3 | E28: 0.3 | F28: 0.31 | G28: 0.31 | H28: 0.31 | I28: n/a | J28: n/a | K28: n/a | L28: n/a
B29: Penetration, % | C29: 1.65 | D29: 1.66 | E29: 1.68 | F29: 1.68 | G29: 1.68 | H29: 1.67 | I29: n/a | J29: n/a | K29: n/a | L29: n/a
B30: Churn rate, % | C30: 0.101 | D30: 0.109 | E30: 0.092 | F30: 0.11 | G30: 0.411 | H30: 0.101 | I30: 0.091 | J30: 0.097 | K30: 0.108 | L30: 0.396
B31: ARPU, RUB | C31: 324.7 | D31: 335.5 | E31: 357.6 | F31: 336.5 | G31: 338.2 | H31: 315.4 | I31: 323.6 | J31: 341.3 | K31: 323.2 | L31: 325.7
B32: MOU, min | C32: 353 | D32: 373 | E32: 377 | F32: 393 | G32: 372 | H32: 367 | I32: 388 | J32: 386 | K32: 387 | L32: 381
B33: APPM, RUB | C33: 0.92 | D33: 0.9 | E33: 0.95 | F33: 0.86 | G33: 0.91 | H33: 0.86 | I33: 0.83 | J33: 0.88 | K33: 0.84 | L33: 0.85
B34: ARPU from VAS, RUB | C34: 118.6 | D34: 118.9 | E34: 126.5 | F34: 125 | G34: 122.1 | H34: 126.1 | I34: 125.7 | J34: 134.3 | K34: 134.1 | L34: 130
B35: - VAS as % of ARPU | C35: 0.365 | D35: 0.354 | E35: 0.354 | F35: 0.371 | G35: 0.361 | H35: 0.4 | I35: 0.388 | J35: 0.393 | K35: 0.415 | L35: 0.399
B36: Total VAS revenue, RUB mln | C36: 24782 | D36: 25062 | E36: 27287.8 | F36: 27709.9 | G36: 104841.8 | H36: 28188.8 | I36: 28256.7 | J36: 30668.7 | K36: 31000.8 | L36: 118115
B37: - data traffic | C37: 14330.5 | D37: 15325.1 | E37: 17178.8 | F37: 17597 | G37: 64431.4 | H37: 18057.5 | I37: 18909.7 | J37: 20645.5 | K37: 19564.1 | L37: 77176.8
B38: - other VAS | C38: 10451.5 | D38: 9736.9 | E38: 10109 | F38: 10112.9 | G38: 40410.3 | H38: 10131.3 | I38: 9347 | J38: 10023.1 | K38: 11436.7 | L38: 40938.1
B39: Fixed business
B40: Residential
B41: Number of subscribers*, thou | C41: 8976.304 | D41: 8931.67 | E41: 8930.514 | F41: 8693.959 | G41: 8693.959 | H41: 8756.669 | I41: 8786.871 | J41: 8818.372222 | K41: 8878 | L41: 8878
B42: - fixed telephony | C42: 3733 | D42: 3707 | E42: 3677 | F42: 3640 | G42: 3640 | H42: 3601 | I42: 3571 | J42: 3540 | K42: 3503 | L42: 3503
B43: - internet | C43: 2317 | D43: 2314 | E43: 2359 | F43: 2357 | G43: 2357 | H43: 2436 | I43: 2486 | J43: 2537 | K43: 2630 | L43: 2630
B44: - TV | C44: 2926 | D44: 2911 | E44: 2894 | F44: 2696 | G44: 2696 | H44: 2719 | I44: 2730 | J44: 2741 | K44: 2745 | L44: 2745
B45: ARPU, RUB | C45: 265.4713101 | D45: 271.2961802 | E45: 265.9949568 | F45: 278.0217073 | G45: 272.6900855 | H45: 284.2359455 | I45: 283.0000735 | J45: 279.5107058 | K45: 283.727079 | L45: 281.6180749
B47: Other operating highlights
B48: Mobile Internet indicators
B49: MTS Connect modem and data tariff sales, thou | C49: 1513 | D49: 1533 | E49: 1597 | F49: 1643 | G49: 6287 | H49: 1298 | I49: 1105 | J49: 1189 | K49: 1127 | L49: 4799
B50: Mobile Internet users penetration, as % from monthly active users | C50: 0.423 | D50: 0.428 | E50: 0.419 | F50: 0.435 | G50: 0.435 | H50: 0.452 | I50: 0.429 | J50: 0.439 | K50: 0.472 | L50: 0.472
B51: Average monthly data traffic per mobile Internet user, mb | C51: 1368 | D51: 1478 | E51: 1655 | F51: 1916 | G51: 1604 | H51: 2142 | I51: 2145 | J51: 2185 | K51: 2510 | L51: 2252
B52: Smartphones penetration, as % of all registered mobile phones on MTS network** | C52: 0.346 | D52: 0.37 | E52: 0.399 | F52: 0.424 | G52: 0.424 | H52: 0.436 | I52: 0.449 | J52: 0.474 | K52: 0.484 | L52: 0.484
B53: MTS Money (MTS Dengi) project
B54: Total credit portfolio (PoS loans and credit cards), bln RUB | C54: 21.22 | D54: 23.79 | E54: 25.08 | F54: 24 | G54: 24 | H54: 23.011 | I54: 20.257 | J54: 20.51 | K54: 18.53 | L54: 18.53
B55: Total number of MTS Dengi cards issued, mln | C55: 2.253 | D55: 2.445 | E55: 2.558 | F55: 2.653 | G55: 2.653 | H55: 2.674 | I55: 2.711 | J55: 2.765 | K55: 2.851 | L55: 2.851
B57: * From Q3 2015, MTS discloses the number of subscribers by types of services in line with the best practices in the industry. Numbers of subscribers and ARPU have been retrospectively restated **MTS defines a smartphone as a handset with one of the following operating systems: iOS, Android, Windows, Blackberry OS, Symbian, Linux or Bada.

Sheet Ukraine
B2: Country highlights:* | C2: 2014 | H2: 2015
B3: Ukraine | C3: Q1 | D3: Q2 | E3: Q3 | F3: Q4 | G3: Full year | H3: Q1 | I3: Q2 | J3: Q3 | K3: Q4 | L3: Full year
B5: Amounts in millions of RUB, unless stated
B6: Revenue | C6: 9542 | D6: 7684 | E6: 8113 | F6: 7471 | G6: 32810 | H6: 7904 | I6: 5904 | J6: 7450 | K6: 6937 | L6: 28194
B7: Operating profit | C7: 2636 | D7: 2167 | E7: 2075 | F7: -3468 | G7: 3409 | H7: 693 | I7: 1190 | J7: 1675 | K7: 1158 | L7: 4716
B8: - operating margin, % | C8: 0.276 | D8: 0.282 | E8: 0.256 | F8: n/a | G8: 0.104 | H8: 0.088 | I8: 0.202 | J8: 0.225 | K8: 0.167 | L8: 0.167
B9: Depreciation and amortization | C9: 2261 | D9: 1660 | E9: 1410 | F9: 1448 | G9: 6779 | H9: 1344 | I9: 1107 | J9: 1358 | K9: 1390 | L9: 5199
B10: - as % of revenue | C10: 0.237 | D10: 0.216 | E10: 0.174 | F10: 0.194 | G10: 0.207 | H10: 0.17 | I10: 0.188 | J10: 0.182 | K10: 0.2 | L10: 0.184
B11: Adjusted OIBDA** | C11: 4897 | D11: 3826 | E11: 3485 | F11: 3118 | G11: 15326 | H11: 3735 | I11: 2297 | J11: 3032 | K11: 2548 | L11: 11612
B12: Adjusted OIBDA margin, % | C12: 0.513 | D12: 0.498 | E12: 0.43 | F12: 0.417 | G12: 0.467 | H12: 0.473 | I12: 0.389 | J12: 0.407 | K12: 0.367 | L12: 0.412
B13: Net profit | C13: 4053 | D13: 2312 | E13: 2173 | F13: -789 | G13: 7748 | H13: 3223 | I13: 548 | J13: 1637 | K13: 1180 | L13: 6589
B14: - margin, % | C14: 0.425 | D14: 0.301 | E14: 0.268 | F14: n/a | G14: 0.236 | H14: 0.408 | I14: 0.093 | J14: 0.22 | K14: 0.17 | L14: 0.234
B15: CAPEX | C15: 608 | D15: 813 | E15: 828 | F15: 1962 | G15: 4210 | H15: 9102 | I15: 1506 | J15: 1842 | K15: 7021 | L15: 19471
B16: CAPEX excluding purchases of 3G license | C16: 608 | D16: 813 | E16: 828 | F16: 1962 | G16: 4210 | H16: 2058 | I16: 1506 | J16: 1842 | K16: 7021 | L16: 12427
B17: - as % of revenue | C17: 0.064 | D17: 0.106 | E17: 0.102 | F17: 0.263 | G17: 0.128 | H17: 0.26 | I17: 0.255 | J17: 0.247 | K17: 1.012 | L17: 0.441
B19: Operating highlights
B20: Mobile business
B21: MTS subscribers, mln | C21: 21.7 | D21: 22.3 | E21: 22.7 | F21: 20.2 | G21: 20.2 | H21: 20.3 | I21: 20.3 | J21: 20.289667 | K21: 20.4 | L21: 20.4
B22: Market share, % | C22: 0.37 | D22: 0.37 | E22: 0.37 | F22: 0.34 | G22: 0.34 | H22: n/a | I22: n/a | J22: n/a | K22: n/a | L22: n/a
B23: Penetration, % | C23: 1.31 | D23: 1.32 | E23: 1.37 | F23: 1.31 | G23: 1.31 | H23: n/a | I23: n/a | J23: n/a | K23: n/a | L23: n/a
B24: Churn rate, % | C24: 0.062 | D24: 0.045 | E24: 0.046 | F24: 0.176 | G24: 0.342 | H24: 0.055 | I24: 0.056 | J24: 0.069 | K24: 0.066 | L24: 0.245
B25: ARPU, RUB | C25: 144.9 | D25: 114.7 | E25: 118.5 | F25: 114 | G25: 129.1 | H25: 128.4 | I25: 95.7 | J25: 120.9 | K25: 112 | L25: 114.2
B26: MOU, min | C26: 573 | D26: 575 | E26: 483 | F26: 480 | G26: 554.1369356 | H26: 508 | I26: 501.8 | J26: 500 | K26: 523 | L26: 508
B27: APPM, RUB | C27: 0.25 | D27: 0.2 | E27: 0.25 | F27: 0.24 | G27: 0.23 | H27: 0.25 | I27: 0.2 | J27: 0.24 | K27: 0.21 | L27: 0.22
B28: ARPU from VAS, RUB | C28: 49.8 | D28: 33.8 | E28: 29.6 | F28: 30.5 | G28: 37.7 | H28: 33.5 | I28: 27.4 | J28: 34.4 | K28: 34.6 | L28: 32.4
B29: - VAS as % of ARPU | C29: 0.344 | D29: 0.295 | E29: 0.25 | F29: 0.268 | G29: 0.292 | H29: 0.264 | I29: 0.286 | J29: 0.284 | K29: 0.309 | L29: 0.284
B30: SAC per gross new subscriber, RUB | C30: 195 | D30: 151.9 | E30: 182.4 | F30: 226.1 | G30: 185.3 | H30: 203.7 | I30: 211.1 | J30: 219.7 | K30: 240.5 | L30: 220.2
B31: - dealer commission | C31: 116 | D31: 93.3 | E31: 107.9 | F31: 130.5 | G31: 110.1 | H31: 131.3 | I31: 118.4 | J31: 137.5 | K31: 140 | L31: 131.5
B32: - advertising & marketing | C32: 47.7 | D32: 39.6 | E32: 49 | F32: 66.4 | G32: 49.6 | H32: 48.9 | I32: 62.8 | J32: 49.3 | K32: 60.4 | L32: 55.5
B33: - handset subsidy | C33: 2.8 | D33: 2.3 | E33: 4.9 | F33: 9 | G33: 4.6 | H33: 0.7 | I33: 4.6 | J33: 4.3 | K33: 3.2 | L33: 4.5
B34: - SIM card & voucher cost | C34: 28.6 | D34: 16.7 | E34: 20.5 | F34: 20.2 | G34: 21 | H34: 22.7 | I34: 25.2 | J34: 28.6 | K34: 37 | L34: 28.7
B35: Total VAS, RUB mln | C35: 3227.6 | D35: 2234.6 | E35: 1999.7 | F35: 1967.4 | G35: 9429.3 | H35: 2031.3 | I35: 1665.3 | J35: 2092.1 | K35: 2110.6 | L35: 7899.3
B36: - data traffic | C36: 1070.9 | D36: 829.6 | E36: 757 | F36: 741.1 | G36: 3398.7 | H36: 806.4 | I36: 672.8 | J36: 896 | K36: 900.6 | L36: 3275.8
B37: - other VAS | C37: 2156.7 | D37: 1404.9 | E37: 1242.7 | F37: 1226.3 | G37: 6030.6 | H37: 1224.9 | I37: 992.5 | J37: 1196.1 | K37: 1210 | L37: 4623.5
B39: UAH/RUB | C39: 0.25 | D39: 0.33 | E39: 0.35 | F39: 0.31 | G39: 0.31 | H39: 0.34 | I39: 0.41 | J39: 0.35 | K39: 0.35 | L39: 0.36
B41: Amounts in millions of UAH, unless stated
B42: Revenue | C42: 2414 | D42: 2570 | E42: 2818 | F42: 2282 | G42: 10084 | H42: 2631 | I42: 2419 | J42: 2572 | K42: 2405 | L42: 10027
B43: Operating profit | C43: 668 | D43: 724 | E43: 722 | F43: -928 | G43: 1186 | H43: 147 | I43: 489 | J43: 579 | K43: 404 | L43: 1619
B44: - operating margin, % | C44: 0.277 | D44: 0.282 | E44: 0.256 | F44: n/a | G44: 0.118 | H44: 0.056 | I44: 0.202 | J44: 0.225 | K44: 0.168 | L44: 0.161
B45: Depreciation and amortization | C45: 569 | D45: 555 | E45: 489 | F45: 442 | G45: 2056 | H45: 443 | I45: 453 | J45: 469 | K45: 481 | L45: 1846
B46: - as % of revenue | C46: 0.236 | D46: 0.216 | E46: 0.174 | F46: 0.194 | G46: 0.204 | H46: 0.168 | I46: 0.187 | J46: 0.182 | K46: 0.2 | L46: 0.184
B47: Adjusted OIBDA** | C47: 1238 | D47: 1279 | E47: 1211 | F47: 963 | G47: 4691 | H47: 1238 | I47: 942 | J47: 1048 | K47: 885 | L47: 4113
B48: Adjusted OIBDA margin, % | C48: 0.513 | D48: 0.498 | E48: 0.43 | F48: 0.422 | G48: 0.465 | H48: 0.47 | I48: 0.389 | J48: 0.408 | K48: 0.368 | L48: 0.41
B49: Net profit | C49: 1032 | D49: 771 | E49: 763 | F49: -141 | G49: 2425 | H49: 1096 | I49: 214 | J49: 569 | K49: 412 | L49: 2290
B50: - margin, % | C50: 0.427 | D50: 0.3 | E50: 0.271 | F50: n/a | G50: 0.24 | H50: 0.416 | I50: 0.088 | J50: 0.221 | K50: 0.171 | L50: 0.228
B51: CAPEX | C51: 155 | D51: 271 | E51: 286 | F51: 586 | G51: 1298 | H51: 3369 | I51: 619 | J51: 636 | K51: 2426 | L51: 7051
B52: CAPEX excluding purchases of 3G license | C52: 155 | D52: 271 | E52: 286 | F52: 586 | G52: 1298 | H52: 645 | I52: 619 | J52: 636 | K52: 2426 | L52: 4327
B53: - as % of revenue | C53: 0.064 | D53: 0.106 | E53: 0.102 | F53: 0.257 | G53: 0.129 | H53: 0.245 | I53: 0.256 | J53: 0.247 | K53: 1.009 | L53: 0.431
B55: Operating highlights
B56: Mobile business
B57: ARPU, UAH | C57: 36.67 | D57: 38.36 | E57: 41.15 | F57: 34.83 | G57: 39.69 | H57: 42.74 | I57: 39.2 | J57: 41.74 | K57: 38.81 | L57: 40.61
B58: MOU, min | C58: 573 | D58: 575 | E58: 483 | F58: 480 | G58: 554 | H58: 508 | I58: 502 | J58: 500 | K58: 523 | L58: 508
B59: APPM, UAH | C59: 0.06 | D59: 0.07 | E59: 0.09 | F59: 0.07 | G59: 0.07 | H59: 0.08 | I59: 0.08 | J59: 0.08 | K59: 0.07 | L59: 0.08
B60: ARPU from VAS, UAH | C60: 12.56 | D60: 11.31 | E60: 10.27 | F60: 9.35 | G60: 11.42 | H60: 11.08 | I60: 11.23 | J60: 11.86 | K60: 11.98 | L60: 11.53
B61: - VAS as % of ARPU | C61: 0.342 | D61: 0.295 | E61: 0.25 | F61: 0.269 | G61: 0.288 | H61: 0.259 | I61: 0.286 | J61: 0.284 | K61: 0.309 | L61: 0.284
B62: SAC per gross new subscriber, UAH | C62: 49.4 | D62: 50.8 | E62: 63.4 | F62: 69.3 | G62: 57.6 | H62: 69.2 | I62: 86.7 | J62: 76.2 | K62: 83.4 | L62: 79.5
B63: - dealer commission | C63: 29.4 | D63: 31.2 | E63: 37.5 | F63: 40 | G63: 34.2 | H63: 44.6 | I63: 48.7 | J63: 47.7 | K63: 48.6 | L63: 47.5
B64: - advertising & marketing | C64: 12.1 | D64: 13.3 | E64: 17 | F64: 20.3 | G64: 15.4 | H64: 16.6 | I64: 25.8 | J64: 17.1 | K64: 20.9 | L64: 20
B65: - handset subsidy | C65: 0.7 | D65: 0.8 | E65: 1.7 | F65: 2.8 | G65: 1.4 | H65: 0.2 | I65: 1.9 | J65: 1.5 | K65: 1.1 | L65: 1.6
B66: - SIM card & voucher cost | C66: 7.2 | D66: 5.6 | E66: 7.1 | F66: 6.2 | G66: 6.5 | H66: 7.7 | I66: 10.4 | J66: 9.9 | K66: 12.8 | L66: 10.4
B67: Total VAS, UAH mln | C67: 813.5 | D67: 746.6 | E67: 694.1 | F67: 602.7 | G67: 2856.9 | H67: 672.4 | I67: 682.8 | J67: 721.8 | K67: 732 | L67: 2809
B68: - data traffic | C68: 270.5 | D68: 277.3 | E68: 262.8 | F68: 227.4 | G68: 1037.9 | H68: 267.8 | I68: 275.5 | J68: 308.7 | K68: 312.6 | L68: 1164.6
B69: - other VAS | C69: 543 | D69: 469.3 | E69: 431.3 | F69: 375.3 | G69: 1819 | H69: 404.5 | I69: 407.3 | J69: 413.1 | K69: 419.4 | L69: 1644.4
B71: *Due to the rounding and translation practices, Russian rubles and functional currency margins, as well as other non-IFRS financial measures, may differ.
B73: **OIBDA for 4Q 2014 and 2014 doesn't include provision for cash balances deposited in distressed Ukrainian banks of RUB 5,138 mln (UAH 1,449 mln). OIBDA for 1Q 2015 doesn't include provision for cash balances deposited in distressed Ukrainian banks of RUB 1,698 mln (UAH 648 mln).

Sheet Armenia
B2: Country highlights:* | C2: 2014 | H2: 2015
B3: Armenia | C3: Q1 | D3: Q2 | E3: Q3 | F3: Q4 | G3: Full year | H3: Q1 | I3: Q2 | J3: Q3 | K3: Q4 | L3: Full year
B5: Amounts in millions of RUB, unless stated
B6: Revenue | C6: 1458 | D6: 1599 | E6: 1953 | F6: 2141 | G6: 7151 | H6: 2200 | I6: 2043 | J6: 2525 | K6: 2269 | L6: 9038
B7: Operating profit | C7: 221 | D7: 347 | E7: 642 | F7: 464 | G7: 1674 | H7: 436 | I7: 412 | J7: 680 | K7: -3122 | L7: -1595
B8: - operating margin, % | C8: 0.152 | D8: 0.217 | E8: 0.329 | F8: 0.217 | G8: 0.234 | H8: 0.198 | I8: 0.201 | J8: 0.269 | K8: n/a | L8: n/a
B9: Depreciation and amortization | C9: 440 | D9: 419 | E9: 425 | F9: 523 | G9: 1807 | H9: 623 | I9: 525 | J9: 626 | K9: 656 | L9: 2431
B10: - as % of revenue | C10: 0.302 | D10: 0.262 | E10: 0.218 | F10: 0.244 | G10: 0.253 | H10: 0.283 | I10: 0.257 | J10: 0.248 | K10: 0.289 | L10: 0.269
B11: Adjusted OIBDA** | C11: 662 | D11: 766 | E11: 1067 | F11: 986 | G11: 3481 | H11: 1059 | I11: 937 | J11: 1306 | K11: 1050 | L11: 4352
B12: Adjusted OIBDA margin, % | C12: 0.454 | D12: 0.479 | E12: 0.546 | F12: 0.461 | G12: 0.487 | H12: 0.481 | I12: 0.458 | J12: 0.5171823545 | K12: 0.463 | L12: 0.482
B13: Net profit | C13: 222 | D13: 1009 | E13: 67 | F13: -102 | G13: 1196 | H13: 316 | I13: 456 | J13: 537 | K13: -2480 | L13: -1175
B14: - margin, % | C14: 0.152 | D14: 0.631 | E14: 0.034 | F14: n/a | G14: 0.167 | H14: 0.143 | I14: 0.223 | J14: 0.213 | K14: n/a | L14: n/a
B15: CAPEX | C15: 80 | D15: 92 | E15: 173 | F15: 797 | G15: 1142 | H15: 119 | I15: 53 | J15: 304 | K15: 895 | L15: 1371
B16: - as % of revenue | C16: 0.055 | D16: 0.058 | E16: 0.088 | F16: 0.372 | G16: 0.16 | H16: 0.054 | I16: 0.026 | J16: 0.121 | K16: 0.395 | L16: 0.152
B18: Operating highlights
B19: Mobile business
B20: MTS subscribers, thous | C20: 2102.5 | D20: 2121.8 | E20: 2149.4 | F20: 2145.5 | G20: 2145.5 | H20: 2116.6 | I20: 2109.7 | J20: 2126.6 | K20: 2115.1 | L20: 2115.1
B21: Market share, % | C21: 0.61 | D21: 0.61 | E21: 0.63 | F21: 0.6 | G21: 0.6 | H21: 0.6 | I21: 0.59 | J21: 0.588 | K21: 0.59 | L21: 0.59
B22: Penetration, % | C22: 1.07 | D22: 1.08 | E22: 1.06 | F22: 1.11 | G22: 1.11 | H22: 1.1 | I22: 1.11 | J22: 1.131 | K22: 1.125 | L22: 1.125
B23: Churn rate, % | C23: 0.078 | D23: 0.077 | E23: 0.09 | F23: 0.095 | G23: 0.339 | H23: 0.087 | I23: 0.084 | J23: 0.08323991422 | K23: 0.087 | L23: 0.34
B24: ARPU, RUB | C24: 228.9 | D24: 249.1 | E24: 299.1 | F24: 323.1 | G24: 275.4 | H24: 333.5 | I24: 313.5 | J24: 384.7 | K24: 343.3 | L24: 343.4
B25: MOU, min | C25: 464 | D25: 516 | E25: 527 | F25: 523 | G25: 508 | H25: 493 | I25: 536 | J25: 545 | K25: 533 | L25: 524
B26: APPM, RUB | C26: 0.49 | D26: 0.48 | E26: 0.57 | F26: 0.62 | G26: 0.54 | H26: 0.68 | I26: 0.58 | J26: 0.71 | K26: 0.64 | L26: 0.66
B27: SAC per gross new subscriber, RUB | C27: 437.9 | D27: 449.5 | E27: 422.2 | F27: 689 | G27: 501.4 | H27: 721.5 | I27: 636.9 | J27: 667.2 | K27: 770.5 | L27: 697.8
B29: AMD/RUB | C29: 11.8 | D29: 11.8 | E29: 11.3 | F29: 9.2 | G29: 11 | H29: 7.7 | I29: 9.1 | J29: 7.7 | K29: 7.3 | L29: 7.9
B31: Amounts in millions of AMD, unless stated
B32: Revenue | C32: 17138 | D32: 18876 | E32: 22066 | F32: 19572 | G32: 77651 | H32: 16921 | I32: 18479 | J32: 19296 | K32: 16481 | L32: 71177
B33: Operating profit | C33: 2624 | D33: 4101 | E33: 7259 | F33: 4341 | G33: 18324 | H33: 3359 | I33: 3737 | J33: 5214 | K33: -21528 | L33: -9218
B34: - operating margin, % | C34: 0.153 | D34: 0.217 | E34: 0.329 | F34: 0.222 | G34: 0.236 | H34: 0.199 | I34: 0.202 | J34: 0.27 | K34: n/a | L34: n/a
B35: Depreciation and amortization | C35: 5179 | D35: 4943 | E35: 4799 | F35: 4770 | G35: 19690 | H35: 4788 | I35: 4753 | J35: 4770 | K35: 4768 | L35: 19079
B36: - as % of revenue | C36: 0.302 | D36: 0.262 | E36: 0.217 | F36: 0.244 | G36: 0.254 | H36: 0.283 | I36: 0.257 | J36: 0.247 | K36: 0.289 | L36: 0.268
B37: Adjusted OIBDA** | C37: 7802 | D37: 9043 | E37: 12057 | F37: 9112 | G37: 38014 | H37: 8147 | I37: 8491 | J37: 9984 | K37: 7629 | L37: 34251
B38: Adjusted OIBDA margin, % | C38: 0.455 | D38: 0.479 | E38: 0.546 | F38: 0.466 | G38: 0.49 | H38: 0.481 | I38: 0.459 | J38: 0.517 | K38: 0.463 | L38: 0.481
B39: Net profit | C39: 2620 | D39: 11911 | E39: 776 | F39: -897 | G39: 14410 | H39: 2420 | I39: 4078 | J39: 4107 | K39: -17119 | L39: -6514
B40: - margin, % | C40: 0.153 | D40: 0.631 | E40: 0.035 | F40: n/a | G40: 0.186 | H40: 0.143 | I40: 0.221 | J40: 0.213 | K40: n/a | L40: n/a
B41: CAPEX | C41: 937 | D41: 1097 | E41: 1916 | F41: 6932 | G41: 10882 | H41: 887 | I41: 473 | J41: 2299 | K41: 6320 | L41: 9978
B42: - as % of revenue | C42: 0.055 | D42: 0.058 | E42: 0.087 | F42: 0.354 | G42: 0.14 | H42: 0.052 | I42: 0.026 | J42: 0.119 | K42: 0.383 | L42: 0.14
B44: Operating highlights
B45: Mobile business
B46: ARPU, AMD | C46: 2691.1 | D46: 2939.3 | E46: 3378.6 | F46: 2956.6 | G46: 2993.2 | H46: 2565.4 | I46: 2835.7 | J46: 2940 | K46: 2493.9 | L46: 2706
B47: MOU, min | C47: 464 | D47: 516 | E47: 527 | F47: 523 | G47: 508 | H47: 493 | I47: 536 | J47: 545 | K47: 533 | L47: 524
B48: APPM, AMD | C48: 5.8 | D48: 5.7 | E48: 6.41 | F48: 5.65 | G48: 5.88 | H48: 5.2 | I48: 5.29 | J48: 5.4 | K48: 4.68 | L48: 5.16
B49: SAC per gross new subscriber, AMD | C49: 5129.8 | D49: 5302.3 | E49: 4773.3 | F49: 6261.6 | G49: 5362.8 | H49: 5545.7 | I49: 5766.7 | J49: 5095.6 | K49: 5597.6 | L49: 5487.5
B51: *Due to the rounding and translation practices, Russian rubles and functional currency margins, as well as other non-IFRS financial measures, may differ.
B52: ** Adjusted OIBDA for 4Q 2015 and 2015 doesn't include a loss from impairment of goodwill of RUB 3,516 mln (24,389 mln of AMD).

Sheet Turkmenistan
B2: Country highlights:* | C2: 2014 | H2: 2015
B3: Turkmenistan | C3: Q1 | D3: Q2 | E3: Q3 | F3: Q4 | G3: Full year | H3: Q1 | I3: Q2 | J3: Q3 | K3: Q4 | L3: Full year
B5: Amounts in millions of RUB, unless stated
B6: Revenue | C6: 806 | D6: 851 | E6: 908 | F6: 1257 | G6: 3822 | H6: 1273 | I6: 1074 | J6: 1342 | K6: 1412 | L6: 5101
B7: Operating profit | C7: 180 | D7: 255 | E7: 246 | F7: 329 | G7: 1010 | H7: 252 | I7: 237 | J7: 326 | K7: 330 | L7: 1145
B8: - operating margin, % | C8: 0.223 | D8: 0.299 | E8: 0.271 | F8: 0.262 | G8: 0.264 | H8: 0.198 | I8: 0.22 | J8: 0.243 | K8: 0.234 | L8: 0.224
B9: Depreciation and amortization | C9: 134 | D9: 122 | E9: 133 | F9: 177 | G9: 566 | H9: 205 | I9: 165 | J9: 203 | K9: 209 | L9: 782
B10: - as % of revenue | C10: 0.167 | D10: 0.143 | E10: 0.146 | F10: 0.141 | G10: 0.148 | H10: 0.161 | I10: 0.154 | J10: 0.151 | K10: 0.148 | L10: 0.153
B11: OIBDA | C11: 315 | D11: 377 | E11: 379 | F11: 506 | G11: 1576 | H11: 458 | I11: 402 | J11: 529 | K11: 538 | L11: 1927
B12: OIBDA margin, % | C12: 0.39 | D12: 0.443 | E12: 0.417 | F12: 0.402 | G12: 0.412 | H12: 0.36 | I12: 0.374 | J12: 0.394 | K12: 0.381 | L12: 0.378
B13: Net profit | C13: 148 | D13: 228 | E13: 221 | F13: 284 | G13: 882 | H13: 213 | I13: 202 | J13: 282 | K13: 290 | L13: 986
B14: - margin, % | C14: 0.184 | D14: 0.268 | E14: 0.243 | F14: 0.226 | G14: 0.231 | H14: 0.167 | I14: 0.188 | J14: 0.21 | K14: 0.205 | L14: 0.193
B15: CAPEX | C15: 145 | D15: 61 | E15: 249 | F15: 628 | G15: 1084 | H15: 70 | I15: 244 | J15: 94 | K15: 92 | L15: 500
B16: - as % of revenue | C16: 0.18 | D16: 0.072 | E16: 0.275 | F16: 0.5 | G16: 0.284 | H16: 0.055 | I16: 0.227 | J16: 0.07 | K16: 0.065 | L16: 0.098
B18: Operating highlights
B19: Mobile business
B20: MTS subscribers, thous | C20: 1691.9 | D20: 1699.4 | E20: 1691.3 | F20: 1718.8 | G20: 1718.8 | H20: 1675.4 | I20: 1622.9 | J20: 1612 | K20: 1609.8 | L20: 1609.8
B21: Market share, % | C21: 0.31 | D21: 0.34 | E21: 0.31 | F21: 0.31 | G21: 0.31 | H21: 0.31 | I21: 0.3 | J21: 0.297 | K21: 0.3 | L21: 0.3
B22: Penetration, % | C22: 1.04 | D22: 1.03 | E22: 1.04 | F22: 1.04 | G22: 1.04 | H22: 1.02 | I22: 1.011 | J22: 1.009 | K22: 1.008 | L22: 1.008
B23: Churn rate, % | C23: 0.12 | D23: 0.104 | E23: 0.112 | F23: 0.103 | G23: 0.433 | H23: 0.121 | I23: 0.13 | J23: 0.1204781735 | K23: 0.126 | L23: 0.492
B24: ARPU, RUB | C24: 157.3803747 | D24: 167.2 | E24: 178.5 | F24: 245.4 | G24: 186.7 | H24: 242.2 | I24: 217.1 | J24: 276.5 | K24: 292.2 | L24: 256
B25: MOU, min | C25: 588 | D25: 574 | E25: 564 | F25: 553 | G25: 563 | H25: 504 | I25: 515 | J25: 511 | K25: 499 | L25: 501
B26: APPM, RUB | C26: 0.34 | D26: 0.32 | E26: 0.34 | F26: 0.44 | G26: 0.33 | H26: 0.48 | I26: 0.42 | J26: 0.54 | K26: 0.59 | L26: 0.51
B27: SAC per gross new subscriber, RUB | C27: 292.3 | D27: 295.5 | E27: 339.9 | F27: 439.6 | G27: 345 | H27: 513.7 | I27: 425.5 | J27: 464.9 | K27: 465.5 | L27: 467.2
B29: TMT/RUB | C29: 0.1 | D29: 0.1 | E29: 0.1 | F29: 0.1 | G29: 0.1 | H29: 0.1 | I29: 0.1 | J29: 0.1 | K29: 0.1 | L29: 0.1
B31: Amounts in millions of TMT, unless stated
B32: Revenue | C32: 65.7 | D32: 69.3 | E32: 71.5 | F32: 75.6 | G32: 282.1 | H32: 71.9 | I32: 71.47 | J32: 74.6 | K32: 75 | L32: 293
B33: Operating profit | C33: 14.6 | D33: 20.7 | E33: 19.4 | F33: 19.7 | G33: 74.4 | H33: 14.3 | I33: 15.7 | J33: 18 | K33: 17.4 | L33: 65.4
B34: - operating margin, % | C34: 0.222 | D34: 0.299 | E34: 0.272 | F34: 0.26 | G34: 0.264 | H34: 0.198 | I34: 0.22 | J34: 0.242 | K34: 0.232 | L34: 0.892
B35: Depreciation and amortization | C35: 11 | D35: 9.9 | E35: 10.5 | F35: 10.7 | G35: 42.1 | H35: 11.6 | I35: 11 | J35: 11.3 | K35: 11.1 | L35: 45
B36: - as % of revenue | C36: 0.167 | D36: 0.143 | E36: 0.146 | F36: 0.142 | G36: 0.149 | H36: 0.162 | I36: 0.154 | J36: 0.151 | K36: 0.148 | L36: 0.615
B37: OIBDA | C37: 25.6 | D37: 30.7 | E37: 29.9 | F37: 30.4 | G37: 116.6 | H37: 25.9 | I37: 26.7 | J37: 29.3 | K37: 28.45 | L37: 110.4
B38: OIBDA margin, % | C38: 0.39 | D38: 0.443 | E38: 0.418 | F38: 0.402 | G38: 0.413 | H38: 0.36 | I38: 0.374 | J38: 0.393 | K38: 0.379 | L38: 0.377
B39: Net profit | C39: 12 | D39: 18.6 | E39: 17.4 | F39: 17 | G39: 65 | H39: 12 | I39: 13.4 | J39: 15.6 | K39: 15.2 | L39: 56.2
B40: - margin % | C40: 0.182 | D40: 0.269 | E40: 0.244 | F40: 0.224 | G40: 0.23 | H40: 0.167 | I40: 0.188 | J40: 0.209 | K40: 0.203 | L40: 0.192
B41: CAPEX | C41: 11.9 | D41: 5 | E41: 18.9 | F41: 33.3 | G41: 69.1 | H41: 3.9 | I41: 16.1 | J41: 5.2 | K41: 4.8 | L41: 30
B42: - as % of revenue | C42: 0.18 | D42: 0.072 | E42: 0.264 | F42: 0.44 | G42: 0.245 | H42: 0.055 | I42: 0.225 | J42: 0.07 | K42: 0.064 | L42: 0.414
B44: Operating highlights
B45: Mobile business
B46: ARPU, TMT | C46: 12.8 | D46: 13.6 | E46: 14.1 | F46: 14.8 | G46: 13.8 | H46: 13.7 | I46: 14.4 | J46: 15.4 | K46: 15.5 | L46: 14.7
B47: MOU, min | C47: 588 | D47: 574 | E47: 564 | F47: 553 | G47: 563 | H47: 504 | I47: 515 | J47: 511 | K47: 499 | L47: 501
B48: APPM, TMT | C48: 0.02176870748 | D48: 0.02369337979 | E48: 0.025 | F48: 0.02676311031 | G48: 0.02451154529 | H48: 0.03 | I48: 0.03 | J48: 0.03 | K48: 0.03 | L48: 0.03
B49: SAC per gross new subscriber, TMT | C49: 23.9 | D49: 24.1 | E49: 26.7 | F49: 26.1 | G49: 25.2 | H49: 28.9 | I49: 28.3 | J49: 25.8 | K49: 24.6 | L49: 26.8
B51: *Due to the rounding and translation practices, Russian rubles and functional currency margins, as well as other non-IFRS financial measures, may differ.

Sheet Uzbekistan
B2: Country highlights:* | C2: 2014 | H2: 2015
B3: Uzbekistan | C3: Q1 | D3: Q2 | E3: Q3 | F3: Q4 | G3: Full year | H3: Q1 | I3: Q2 | J3: Q3 | K3: Q4 | L3: Full year
B5: Amounts in millions of RUB, unless stated
B6: Revenue | F6: 104.2 | G6: 104.2 | H6: 487 | I6: 780 | J6: 1331 | K6: 2011 | L6: 4610
B7: Operating profit | F7: -895.2 | G7: -895.2 | H7: -2134 | I7: -1373 | J7: -1404 | K7: -1163 | L7: -6074
B8: - operating margin, % | F8: n/a | G8: n/a | H8: n/a | I8: n/a | J8: n/a | K8: n/a | L8: n/a
B9: Depreciation and amortization | F9: 287.9 | G9: 287.9 | H9: 1209 | I9: 917 | J9: 1275 | K9: 1228 | L9: 4630
B10: - as % of revenue | F10: 2.761 | G10: 2.761 | H10: 2.481 | I10: 1.176 | J10: 0.958 | K10: 0.611 | L10: 1.004
B11: OIBDA | F11: -607.4 | G11: -607.4 | H11: -925 | I11: -455 | J11: -128 | K11: 65 | L11: -1444
B12: OIBDA margin, % | F12: n/a | G12: n/a | H12: n/a | I12: n/a | J12: n/a | K12: 0.032 | L12: n/a
B13: Net profit | F13: -519.7 | G13: -519.7 | H13: -1035 | I13: -578 | J13: -697 | K13: -533 | L13: -2843
B14: - margin, % | F14: n/a | G14: n/a | H14: n/a | I14: n/a | J14: n/a | K14: n/a | L14: n/a
B15: CAPEX | F15: 0.6 | G15: 0.6 | H15: 115 | I15: 126 | J15: 382 | K15: 1572 | L15: 2195
B16: - as % of revenue | F16: 0.006 | G16: 0.006 | H16: 0.236 | I16: 0.162 | J16: 0.287 | K16: 0.782 | L16: 0.476
B18: Operating highlights
B19: Mobile business
B20: MTS subscribers, thous | F20: 188.1 | G20: 188.1 | H20: 423.6 | I20: 643.1 | J20: 870.6 | K20: 1095.2 | L20: 1095.2
B21: Market share, % | F21: 0.01 | G21: 0.01 | H21: 0.02 | I21: 0.03 | J21: 0.042 | K21: 0.054 | L21: 0.054
B22: Penetration, % | F22: 0.64 | G22: 0.64 | H22: 0.66 | I22: 0.65 | J22: 0.655 | K22: 0.649 | L22: 0.649
B23: Churn rate, % | F23: n/a | G23: n/a | H23: 0.084 | I23: 0.13 | J23: 0.143152621 | K23: 0.171 | L23: 0.592
B24: ARPU, RUB | F24: n/a | G24: n/a | H24: 531.2 | I24: 487.7 | J24: 586 | K24: 661.1 | L24: 588.3
B25: MOU, min | F25: 445 | G25: 445 | H25: 356 | I25: 462 | J25: 530 | K25: 527 | L25: 496
B26: APPM, RUB | F26: n/a | G26: n/a | H26: 1.49 | I26: 1.06 | J26: 1.11 | K26: 1.25 | L26: 1.19
B27: SAC per gross new subscriber, RUB | F27: 117.2 | G27: 117.2 | H27: 301.8 | I27: 432.8 | J27: 618.6 | K27: 704.7 | L27: 536.9
B29: UZS/RUB | F29: 51.37 | G29: 61.26 | H29: 39.55 | I29: 48 | J29: 41.28 | K29: 41.19 | L29: 42.5
B31: Amounts in millions of UZS, unless stated
B32: Revenue | F32: 4547 | G32: 4547 | H32: 19292 | I32: 37398 | J32: 54443 | K32: 82384 | L32: 193517
B33: Operating profit | F33: -41412 | G33: -41412 | H33: -86048 | I33: -66323 | J33: -57807 | K33: -47956 | L33: -258134
B34: - operating margin, % | F34: n/a | G34: n/a | H34: n/a | I34: n/a | J34: n/a | K34: n/a | L34: n/a
B35: Depreciation and amortization | F35: 12746 | G35: 12746 | H35: 49229 | I35: 44088 | J35: 52333 | K35: 50538 | L35: 196188
B36: - as % of revenue | F36: 2.805 | G36: 2.805 | H36: 2.539 | I36: 1.179 | J36: 0.961 | K36: 0.613 | L36: 1.014
B37: OIBDA | F37: -28666 | G37: -28666 | H37: -38819 | I37: -22235 | J37: -5473 | K37: 2583 | L37: -63944
B38: OIBDA margin, % | F38: n/a | G38: n/a | H38: n/a | I38: n/a | J38: n/a | K38: 0.031 | L38: n/a
B39: Net profit | F39: -25057 | G39: -25057 | H39: -41853 | I39: -28123 | J39: -28648 | K39: -22071 | L39: -120695
B40: - margin % | F40: n/a | G40: n/a | H40: n/a | I40: n/a | J40: n/a | K40: n/a | L40: n/a
B41: CAPEX | F41: 28 | G41: 28 | H41: 4361 | I41: 5970 | J41: 15559 | K41: 63579 | L41: 89469
B42: - as % of revenue | F42: 0.006 | G42: 0.006 | H42: 0.227 | I42: 0.16 | J42: 0.286 | K42: 0.772 | L42: 0.462
B44: Operating highlights
B45: Mobile business
B46: ARPU, UZS | F46: n/a | G46: n/a | H46: 21027 | I46: 23372.9 | J46: 23976.4 | K46: 27101.4 | L46: 24716.7
B47: MOU, min | F47: 445 | G47: 445 | H47: 356 | I47: 462 | J47: 530 | K47: 527 | L47: 496
B48: APPM, UZS | F48: n/a | G48: n/a | H48: 59.06 | I48: 50.59 | J48: 45.28 | K48: 51.43 | L48: 49.83
B49: SAC per gross new subscriber, UZS | F49: 5116.6 | G49: 5116.6 | H49: 12048.7 | I49: 20747.4 | J49: 25351 | K49: 28984 | L49: 22642.5
B51: *Due to the rounding and translation practices, Russian rubles and functional currency margins, as well as other non-IFRS financial measures, may differ.

Sheet Belarus
B2: Country highlights:* | C2: 2014 | H2: 2015
B3: Belarus** | C3: Q1 | D3: Q2 | E3: Q3 | F3: Q4 | G3: Full year | H3: Q1 | I3: Q2 | J3: Q3 | K3: Q4 | L3: Full year
B5: Amounts in millions of RUB, unless stated
B6: Revenue | C6: 4014 | D6: 3727 | E6: 5836 | F6: 10038 | G6: 23616 | H6: 4973 | I6: 4666 | J6: 5528 | K6: 5718.910253 | L6: 20885.7564
B7: Operating profit | C7: 1619 | D7: 1103 | E7: 1863 | F7: 3445 | G7: 8030 | H7: 1552 | I7: 1655 | J7: 1822 | K7: 1871.391868 | L7: 6900.316038
B8: - operating margin, % | C8: 0.403 | D8: 0.296 | E8: 0.319 | F8: 0.343 | G8: 0.34 | H8: 0.312 | I8: 0.355 | J8: 0.33 | K8: 0.3272287525 | L8: 0.3303838226
B9: Depreciation and amortization | C9: 501 | D9: 794 | E9: 1174 | F9: 1664 | G9: 4134 | H9: 860 | I9: 759 | J9: 761 | K9: 726.2712643 | L9: 3105.4946
B10: - as % of revenue | C10: 0.125 | D10: 0.213 | E10: 0.201 | F10: 0.166 | G10: 0.175 | H10: 0.173 | I10: 0.163 | J10: 0.138 | K10: 0.1269946952 | L10: 0.1486895921
B11: Adjusted OIBDA*** | C11: 2121 | D11: 1897 | E11: 3037 | F11: 5109 | G11: 12164 | H11: 2694.121593 | I11: 2414 | J11: 2582 | K11: 2597.663132 | L11: 10287.87807
B12: Adjusted OIBDA margin, % | C12: 0.528 | D12: 0.509 | E12: 0.52 | F12: 0.509 | G12: 0.515 | H12: 0.5417954547 | I12: 0.517 | J12: 0.467 | K12: 0.4542234477 | L12: 0.4925786679
B13: Net profit | C13: 1267 | D13: 802 | E13: 1495 | F13: 3494 | G13: 7057 | H13: 2034 | I13: 1319 | J13: 1802 | K13: 1899.870955 | L13: 7054.148591
B14: - margin, % | C14: 0.316 | D14: 0.215 | E14: 0.256 | F14: 0.348 | G14: 0.299 | H14: 0.409 | I14: 0.283 | J14: 0.326 | K14: 0.3322085626 | L14: 0.3377492515
B15: CAPEX | C15: 569 | D15: 323 | E15: 570 | F15: 2653 | G15: 4115 | H15: 1323 | I15: 1474 | J15: 759 | K15: 1282.271616 | L15: 4838.194626
B16: CAPEX excluding purchases of 3G license | C16: 569 | D16: 323 | E16: 570 | F16: 2653 | G16: 4115 | H16: 1323 | I16: 1474 | J16: 759 | K16: 613.8226725 | L16: 4169.745682
B17: - as % of revenue | C17: 0.142 | D17: 0.087 | E17: 0.098 | F17: 0.264 | G17: 0.174 | H17: 0.266 | I17: 0.316 | J17: 0.137 | K17: 0.1073321044 | L17: 0.1996454235
B19: Operating highlights
B20: Mobile business
B21: MTS subscribers, thous | C21: 5.2 | D21: 5.3 | E21: 5.3 | F21: 5.3 | G21: 5.3 | H21: 5.3 | I21: 5.3 | J21: 5.3 | K21: 5.3 | L21: 5.3
B22: Market share, % | C22: 0.46 | D22: 0.46 | E22: 0.46 | F22: 0.46 | G22: 0.46 | H22: 0.46 | I22: 0.46 | J22: 0.456 | K22: 0.455 | L22: 0.455
B23: Penetration, % | C23: 1.2 | D23: 1.21 | E23: 1.21 | F23: 1.21 | G23: 1.21 | H23: 1.22 | I23: 1.22 | J23: 1.229 | K23: 1.229 | L23: 1.229
B24: Churn rate, % | C24: 0.063 | D24: 0.047 | E24: 0.055 | F24: 0.058 | G24: 0.223 | H24: 0.051 | I24: 0.047 | J24: 0.04946117514 | K24: 0.051 | L24: 0.197
B25: ARPU, RUB | C25: 221.3 | D25: 206.5 | E25: 323.4 | F25: 557.4 | G25: 327.8 | H25: 291.5 | I25: 262.8 | J25: 290.3 | K25: 282.8 | L25: 281.7
B26: MOU, min | C26: 465 | D26: 491 | E26: 498 | F26: 480 | G26: 482 | H26: 448 | I26: 470 | J26: 472 | K26: 468 | L26: 463
B27: APPM, RUB | C27: 0.5 | D27: 0.4 | E27: 0.6 | F27: 1.16 | G27: 0.68 | H27: =H25/H26 -> 0.6506696429 | I27: 0.56 | J27: 0.62 | K27: 0.6 | L27: 0.61
B28: SAC per gross new subscriber, RUB | C28: 453.3 | D28: 469.6 | E28: 695.2 | F28: 1347.5 | G28: 747.5 | H28: 852.3 | I28: 797.8 | J28: 832.2 | K28: 802.7 | L28: 821.2
B30: BYR/RUB | C30: 277.5 | D30: 286.9 | E30: 287 | F30: 231.4 | G30: 270.6 | H30: 236.3 | I30: 279.1 | J30: 260.8 | K30: 258.8 | L30: 261.8
B32: Amounts in millions of BYR, unless stated
B33: Revenue | C33: 1110243 | D33: 1237782 | E33: 1299268 | F33: 1327050 | G33: 4974343 | H33: 1174185 | I33: 1302469 | J33: 1439938 | K33: 1542389 | L33: 5458982
B34: Operating profit | C34: 447784 | D34: 377811 | E34: 405927 | F34: 459854 | G34: 1691377 | H34: 367054 | I34: 461730 | J34: 474783 | K34: 504055 | L34: 1807622
B35: - operating margin, % | C35: 0.403 | D35: 0.305 | E35: 0.312 | F35: 0.347 | G35: 0.34 | H35: 0.313 | I35: 0.355 | J35: 0.33 | K35: 0.327 | L35: 0.331
B36: Depreciation and amortization | C36: 138699 | D36: 254313 | E36: 270553 | F36: 207233 | G36: 870797 | H36: 203331 | I36: 211730 | J36: 198061 | K36: 196343 | L36: 809464
B37: - as % of revenue | C37: 0.125 | D37: 0.205 | E37: 0.208 | F37: 0.156 | G37: 0.175 | H37: 0.173 | I37: 0.163 | J37: 0.138 | K37: 0.127 | L37: 0.148
B38: Adjusted OIBDA*** | C38: 586483 | D38: 632124 | E38: 676481 | F38: 667087 | G38: 2562174 | H38: 640069.9056 | I38: 673460 | J38: 672844 | K38: 700398 | L38: 2686772
B39: Adjusted OIBDA margin, % | C39: 0.528 | D39: 0.511 | E39: 0.521 | F39: 0.503 | G39: 0.515 | H39: 0.5451185617 | I39: 0.517 | J39: 0.467 | K39: 0.454 | L39: 0.492
B40: Net profit | C40: 350321 | D40: 277013 | E40: 329985 | F40: 529234 | G40: 1486553 | H40: 478138 | I40: 367607 | J40: 469433 | K40: 513050 | L40: 1828228
B41: - margin % | C41: 0.316 | D41: 0.224 | E41: 0.254 | F41: 0.399 | G41: 0.299 | H41: 0.407 | I41: 0.282 | J41: 0.326 | K41: 0.333 | L41: 0.335
B42: CAPEX | C42: 157454 | D42: 113141 | E42: 122139 | F42: 474056 | G42: 866791 | H42: 315581 | I42: 412522 | J42: 199055 | K42: 340868 | L42: 1268027
B43: CAPEX excluding purchases of 3G license | C43: 157454 | D43: 113141 | E43: 122139 | F43: 474056 | G43: 866791 | H43: 315581 | I43: 412522 | J43: 199055 | K43: 165499 | L43: 1092657
B44: - as % of revenue | C44: 0.142 | D44: 0.091 | E44: 0.094 | F44: 0.357 | G44: 0.174 | H44: 0.269 | I44: 0.317 | J44: 0.138 | K44: 0.107 | L44: 0.2
B46: Operating highlights
B47: Mobile business
B48: ARPU, BYR | C48: 61198.2 | D48: 68535.4 | E48: 72185.3 | F48: 74292.6 | G48: 69040.7 | H48: 68832.5 | I48: 73343 | J48: 75648.2 | K48: 76321.8 | L48: 73505.5
B49: MOU, min | C49: 465 | D49: 491 | E49: 498 | F49: 480 | G49: 482 | H49: 448 | I49: 470 | J49: 472 | K49: 468 | L49: 463
B50: APPM, BYR | C50: 131.6 | D50: 139.6 | E50: 145 | F50: 154.78 | G50: 143.24 | H50: 153.64 | I50: 156.05 | J50: 160.38 | K50: 163.08 | L50: 158.76
B51: SAC per gross new subscriber, BYR | C51: 125373.6 | D51: 154246.1 | E51: 158845.4 | F51: 189098.4 | G51: 157458.3 | H51: 201513.6 | I51: 222761.1 | J51: 217131.9 | K51: 216803.9 | L51: 214793.4
B53: *Due to the rounding and translation practices, Russian rubles and functional currency margins, as well as other non-IFRS financial measures, may differ.
B55: **MTS owns a 49% stake in Mobile TeleSystems LLC, a mobile operator in Belarus, which is not consolidated
B57: ***OIBDA for 1Q 2015 and 2015 doesn't include provision for investment in DeltaBank of 282 mln RUB (69,685 mln BYR)

Sheet Group reconciliations
C2: 2014 | G2: 2015
B3: MTS Group | C3: Q1 | D3: Q2 | E3: Q3 | F3: Q4 | G3: Q1 | H3: Q2 | I3: Q3 | J3: Q4
B5: Net debt, amounts in millions of RUB, unless stated
B6: Current portion of LT debt and of finance lease obligations | C6: 25046 | D6: 10381 | E6: 11431 | F6: 41955 | G6: 45488 | H6: 49624 | I6: 60102 | J6: 54346
B7: LT debt | C7: 196599 | D7: 208484 | E7: 216269 | F7: 240860 | G7: 277008 | H7: 263382 | I7: 277218 | J7: 282435
B8: Finance lease obligations | C8: 6 | D8: 5287 | E8: 6100 | F8: 8857 | G8: 9856 | H8: 8466 | I8: 10417 | J8: 11231
B9: Total debt | C9: 221651 | D9: 224152 | E9: 233800 | F9: 291672 | G9: 332352 | H9: 321472 | I9: 347737 | J9: 348012
B10: Less:
B11: Cash and cash equivalents | C11: 37207 | D11: 53449 | E11: 45937 | F11: 61410 | G11: 43776 | H11: 44120 | I11: 25149 | J11: 33464
B12: ST investments | C12: 39073 | D12: 20778 | E12: 23999 | F12: 9942 | G12: 42993 | H12: 46319 | I12: 56627 | J12: 49840
B13: LT deposits | D13: 14272 | F13: 13671 | G13: 38148 | H13: 36802 | I13: 27461 | J13: 30677
B14: Hedge | C14: 4766 | D14: 3288 | E14: 7186 | F14: 21936 | G14: 20286 | H14: 17340 | I14: 22349 | J14: 18174
B15: Net debt | C15: 140605 | D15: 132365 | E15: 156678 | F15: 184713 | G15: 187149 | H15: 176891 | I15: 216151 | J15: 215857
B18: Financial leverage ratios
B19: Shareholders' equity, RUB mln | C19: ='Statement of financial position'!C36 -> 165964 | D19: ='Statement of financial position'!D36 -> 148064 | E19: ='Statement of financial position'!E36 -> 163809 | F19: ='Statement of financial position'!F36 -> 178622 | G19: ='Statement of financial position'!G36 -> 179784 | H19: ='Statement of financial position'!H36 -> 156857 | I19: ='Statement of financial position'!I36 -> 163915 | J19: ='Statement of financial position'!J36 -> 168371
B20: Total assets, RUB mln | C20: ='Statement of financial position'!C31 -> 493870 | D20: ='Statement of financial position'!D31 -> 510086 | E20: ='Statement of financial position'!E31 -> 518802 | F20: ='Statement of financial position'!F31 -> 599304 | G20: ='Statement of financial position'!G31 -> 640796 | H20: ='Statement of financial position'!H31 -> 635283 | I20: ='Statement of financial position'!I31 -> 649120 | J20: ='Statement of financial position'!J31 -> 653378
B21: LTM OIBDA, RUB mln | C21: x | D21: x | E21: x | F21: ='Statement of profit or loss'!G46 -> 179127 | G21: =SUM('Statement of profit or loss'!H46,'Statement of profit or loss'!D46:F46) -> 178283 | H21: =SUM('Statement of profit or loss'!E46:F46,'Statement of profit or loss'!H46:I46) -> 177344 | I21: =SUM('Statement of profit or loss'!F46,'Statement of profit or loss'!H46:J46) -> 176396 | J21: ='Statement of profit or loss'!L46 -> 175546
B22: Net debt/assets | C22: 0.3 | D22: 0.3 | E22: 0.3 | F22: 0.3 | G22: 0.3 | H22: 0.3 | I22: 0.3 | J22: 0.3
B23: Net debt/equity | C23: 0.8 | D23: 0.9 | E23: 0.9564675934 | F23: 1 | G23: 1 | H23: 1.1 | I23: 1.3 | J23: 1.3
B24: Net debt/LTM OIBDA | C24: x | D24: x | E24: x | F24: 1 | G24: 1 | H24: 1 | I24: 1.2 | J24: 1.2
B27: Debt composition
B28: By type, %
B29: Credit facilities | C29: 0.528 | D29: 0.6 | E29: 0.59 | F29: 0.623 | G29: 0.66 | H29: 0.662 | I29: 0.657 | J29: 0.701
B30: Bonds | C30: 0.472 | D30: 0.4 | E30: 0.41 | F30: 0.377 | G30: 0.34 | H30: 0.338 | I30: 0.343 | J30: 0.299
B31: Syndicated loan
B32: By currency, %
B33: RUB | C33: 0.766 | D33: 0.793 | E33: 0.774 | F33: 0.748 | G33: 0.726 | H33: 0.737 | I33: 0.714 | J33: 0.665
B34: USD | C34: 0.211 | D34: 0.197 | E34: 0.216 | F34: 0.238 | G34: 0.262 | H34: 0.25 | I34: 0.27 | J34: 0.314
B35: EUR | C35: 0.023 | D35: 0.01 | E35: 0.01 | F35: 0.01 | G35: 0.008 | H35: 0.007 | I35: 0.007 | J35: 0.007
B38: Free cash flow, amounts in millions of RUB, unless stated
B39: Net cash provided by operating activities | C39: ='Statement of cash flows'!C37 -> 43884 | D39: ='Statement of cash flows'!D37 -> 77838 | E39: ='Statement of cash flows'!E37 -> 120039 | F39: ='Statement of cash flows'!F37 -> 158979 | G39: ='Statement of cash flows'!G37 -> 39115 | H39: ='Statement of cash flows'!H37 -> 72016 | I39: ='Statement of cash flows'!I37 -> 100011 | J39: ='Statement of cash flows'!J37 -> 144088
B40: Less:
B41: Purchases of property, plant and equipment | C41: ='Statement of cash flows'!C43 -> -8470 | D41: ='Statement of cash flows'!D43 -> -23062 | E41: ='Statement of cash flows'!E43 -> -40262 | F41: ='Statement of cash flows'!F43 -> -73573 | G41: ='Statement of cash flows'!G43 -> -21886 | H41: ='Statement of cash flows'!H43 -> -40921 | I41: ='Statement of cash flows'!I43 -> -56528 | J41: ='Statement of cash flows'!J43 -> -76671
B42: Purchases of intangible assets, excluding purchases of 3G, 4G license in Ukraine and Russia | C42: ='Statement of cash flows'!C44 -> -1437 | D42: ='Statement of cash flows'!D44 -> -5447 | E42: ='Statement of cash flows'!E44 -> -13056 | F42: ='Statement of cash flows'!F44 -> -18356 | G42: ='Statement of cash flows'!G44 -> -3539 | H42: ='Statement of cash flows'!H44 -> -12720 | I42: ='Statement of cash flows'!I44 -> -16529 | J42: ='Statement of cash flows'!J44 -> -19440
B43: Proceeds from sale of property, plant and equipment | C43: ='Statement of cash flows'!C46 -> 123 | D43: ='Statement of cash flows'!D46 -> 231 | E43: ='Statement of cash flows'!E46 -> 506 | F43: ='Statement of cash flows'!F46 -> 619 | G43: ='Statement of cash flows'!G46 -> 1291 | H43: ='Statement of cash flows'!H46 -> 1326 | I43: ='Statement of cash flows'!I46 -> 2279 | J43: ='Statement of cash flows'!J46 -> 2988
B44: Investments in and advances to associates | C44: ='Statement of cash flows'!C51 -> 0 | D44: ='Statement of cash flows'!D51 -> -2702 | E44: ='Statement of cash flows'!E51 -> -2862 | F44: ='Statement of cash flows'!F51 -> -7767 | G44: ='Statement of cash flows'!G51 -> 0 | H44: ='Statement of cash flows'!H51 -> 0 | I44: ='Statement of cash flows'!I51 -> 0 | J44: ='Statement of cash flows'!J51 -> 0
B45: Acquisition of subsidiaries, net of cash acquired | C45: ='Statement of cash flows'!C42 -> 0 | D45: ='Statement of cash flows'!D42 -> 0 | E45: ='Statement of cash flows'!E42 -> 0 | F45: ='Statement of cash flows'!F42 -> -2755 | G45: ='Statement of cash flows'!G42 -> 0 | H45: ='Statement of cash flows'!H42 -> 0 | I45: ='Statement of cash flows'!I42 -> 0 | J45: ='Statement of cash flows'!J42 -> 0
B46: Free cash flow | C46: 34101 | D46: 46858 | E46: 64365 | F46: =SUM(F39:F45) -> 57147 | G46: 14981 | H46: =SUM(H39:H45) -> 19701 | I46: 29233 | J46: =SUM(J39:J45) -> 50965

Sheet IFRS vs GAAP P&L FY2014
B2: As of December 31, 2014
B3: MTS Group | C3: December, 31 | D3: Reclass | E3: Adjustment | F3: December, 31
B4: (Amounts in millions of RUB) | C4: RUB mln (GAAP) | D4: RUB mln | E4: RUB mln | F4: RUB mln (IFRS)
B5: NET OPERATING REVENUE
B6: Service revenue and connection Fees | C6: 381822 | D6: -582 | E6: 5 | F6: 381245
B7: Sales of handsets and accessories | C7: 28936 | D7: 582 | E7: 17 | F7: 29535
C8: 410758 | D8: 0 | E8: 22 | F8: 410780
B9: Operating expenses | C9: 0 | D9: 0 | E9: 0 | F9: 0
B10: Cost of services | C10: -89589 | D10: -29978 | E10: 0 | F10: -119567
B11: Cost of handsets and accessories | C11: -25093 | D11: -357 | E11: 0 | F11: -25450
C12: 0 | D12: 0 | E12: 0 | F12: 0
B13: Selling, general and administrative expenses | C13: -112522 | D13: 24233 | E13: 13 | F13: -88275
B14: Depreciation and amortization expense | C14: -74710 | D14: 0 | E14: -311 | F14: -75021
B15: Other operating income/expense | C15: -8090 | D15: 6326 | E15: -54 | F15: -1819
B16: Equity in net (income) / loss of associates, operating | C16: 0 | D16: 3659 | E16: -200 | F16: 3458
B17: Provision for investment in Deltabank | C17: -5138 | D17: 0 | E17: 0 | F17: -5138
B18: Gain from reentrance to Uzbekistan | C18: 6734 | D18: 0 | E18: 0 | F18: 6734
B19: Net operating income | C19: 102349 | D19: 3883 | E19: -530 | F19: 105702
C20: 0 | D20: 0 | E20: 0 | F20: 0
B21: Finance income | C21: 4519 | D21: 0 | E21: 0 | F21: 4519
B22: Finance costs | C22: -16453 | D22: -225 | E22: -582 | F22: -17260
B23: Currency exchange gain or loss | C23: -18024 | D23: 0 | E23: 113 | F23: -17911
B24: Equity in net (income) / loss of associates, non-operating | C24: -2880 | D24: -3659 | E24: 0 | F24: -6538
B25: Change in fair value of finncial instruments | C25: 0 | D25: 165 | E25: -260 | F25: -95
B26: Other expense (income) | C26: -771 | D26: -165 | E26: 0 | F26: -936
B27: Income before income taxes and non-controlling interests | C27: 68740 | D27: 0 | E27: -1260 | F27: 67481
C28: 0 | D28: 0 | E28: 0 | F28: 0
B29: Income tax expense | C29: -16347 | D29: 0 | E29: 363 | F29: -15985
C30: 0 | D30: 0 | E30: 0 | F30: 0
B31: Net income | C31: 52393 | D31: 0 | E31: -897 | F31: 51496
B32: Non-controlling interests | C32: -571 | D32: 0 | E32: 381 | F32: -190
B33: Net income attributable to the group | C33: 51822 | D33: 0 | E33: -516 | F33: 51307

Sheet Debt repayment schedule
B2: As of September 30, 2015 | C2: 2016 | D2: 2017 | E2: 2018 | F2: 2019 | G2: Thereafter
B3: MTS Group
B5: Debt repayments, RUB bln | C5: 53.8 | D5: 59.6 | E5: 54.1 | F5: 42.7 | G5: 126.1
B7: Maturities of major publicly traded debt instruments*
B8: 2020 Eurobond, USD mln | G8: 750
B9: 2023 Eurobond, USD mln | G9: 500
B11: *Amounts before discounts

Sheet Ave Forex Rates
B2: MTS Group | D2: 2014 | I2: 2015
B3: Average Forex rates per country | D3: Q1 | E3: Q2 | F3: Q3 | G3: Q4 | H3: Full year | I3: Q1 | J3: Q2 | K3: Q3 | L3: Q4 | M3: Full year
B5: Russia | C5: RUB/USD | D5: 34.96 | E5: 35 | F5: 36.19 | G5: 47.42 | H5: 38.42 | I5: 62.19 | J5: 52.65 | K5: 62.98 | L5: 65.94 | M5: 60.96
B6: Ukraine | C6: UAH/RUB | D6: 0.25 | E6: 0.33 | F6: 0.35 | G6: 0.31 | H6: 0.31 | I6: 0.34 | J6: 0.41 | K6: 0.35 | L6: 0.35 | M6: 0.36
B7: Uzbekistan | C7: UZS/RUB | G7: 51.37 | H7: 61.26 | I7: 39.55 | J7: 48 | K7: 41.28 | L7: 41.19 | M7: 42.5
B8: Turkmenistan | C8: TMT/RUB | D8: 0.08 | E8: 0.08 | F8: 0.08 | G8: 0.06 | H8: 0.08 | I8: 0.06 | J8: 0.07 | K8: 0.06 | L8: 0.05 | M8: 0.06
B9: Armenia | C9: AMD/RUB | D9: 11.77 | E9: 11.8 | F9: 11.3 | G9: 9.19 | H9: 11.01 | I9: 7.7 | J9: 9.07 | K9: 7.65 | L9: 7.27 | M9: 7.92
B10: Belarus | C10: BYR/RUB | D10: 277.48 | E10: 286.92 | F10: 287.04 | G10: 231.42 | H10: 270.63 | I10: 236.34 | J10: 279.1 | K10: 260.77 | L10: 258.82 | M10: 261.75

Sheet Glossary
G2: Glossary
